[Event "Titled Tuesday Blitz February 21 Early 2023"]
[White "Dong, Khanh Linh"]
[Black "Bettalli, Francesco"]
[WhiteFideId "12403040"]
[BlackFideId "2816453"]
[WhiteElo "1900"]
[BlackElo "2252"]
[Result "1-0"]
[Round "02"]
[TimeControl "180+2"]
[Date "2023.02.21"]
[WhiteClock "0:01:08"]
[BlackClock "0:01:55"]

1. e4 {[%clk 0:03:00]}  g6 {[%clk 0:02:57]} 2. d4 {[%clk 0:03:00]}  Bg7 {[%clk 0:02:57]} 3. Nc3 {[%clk 0:02:59]}  c5 {[%clk 0:02:52]} 4. Nf3 {[%clk 0:02:57]}  Nf6 {[%clk 0:02:49]} 5. Be3 {[%clk 0:02:50]}  Ng4 {[%clk 0:02:48]} 6. Bg5 {[%clk 0:02:47]}  cxd4 {[%clk 0:02:46]} 7. Nxd4 {[%clk 0:02:46]}  Qa5 {[%clk 0:02:43]} 8. Qxg4 {[%clk 0:02:31]}  Bxd4 {[%clk 0:02:42]} 9. Bd2 {[%clk 0:02:31]}  h5 {[%clk 0:02:27]} 10. Qf3 {[%clk 0:02:07]}  Qd8 {[%clk 0:02:14]} 11. Bc4 {[%clk 0:02:01]}  O-O {[%clk 0:02:14]} 12. O-O-O {[%clk 0:01:48]}  e6 {[%clk 0:02:12]} 13. Bh6 {[%clk 0:01:46]}  Bg7 {[%clk 0:02:11]} 14. Bxg7 {[%clk 0:01:45]}  Kxg7 {[%clk 0:02:12]} 15. g4 {[%clk 0:01:45]}  hxg4 {[%clk 0:02:11]} 16. Qxg4 {[%clk 0:01:45]}  d5 {[%clk 0:02:11]} 17. exd5 {[%clk 0:01:41]}  exd5 {[%clk 0:02:12]} 18. Qd4+ {[%clk 0:01:41]}  Kg8 {[%clk 0:02:11]} 19. Nxd5 {[%clk 0:01:40]}  Nc6 {[%clk 0:01:55]} 20. Nf6+ {[%clk 0:01:31]}  Kh8 {[%clk 0:01:56]} 21. Qh4+ {[%clk 0:01:27]}  Kg7 {[%clk 0:01:56]} 22. Rxd8 {[%clk 0:01:23]}  Nxd8 {[%clk 0:01:55]} 23. Qg5 {[%clk 0:01:08]} 1-0


[Site "https://www.chess.com"]

[Event "Titled Tuesday Blitz February 21 Early 2023"]
[White "Sai Han Thiha"]
[Black "MunichMouse"]
[WhiteFideId "13012290"]
[WhiteElo "2070"]
[BlackElo "2296"]
[Result "1-0"]
[Round "02"]
[TimeControl "180+2"]
[Date "2023.02.21"]
[WhiteClock "0:00:04"]
[BlackClock "0:00:04"]

1. d4 {[%clk 0:03:00]}  Nf6 {[%clk 0:02:59]} 2. c4 {[%clk 0:03:01]}  g6 {[%clk 0:02:59]} 3. Nc3 {[%clk 0:03:01]}  Bg7 {[%clk 0:02:59]} 4. e4 {[%clk 0:03:01]}  d6 {[%clk 0:02:59]} 5. Nf3 {[%clk 0:03:01]}  O-O {[%clk 0:03:00]} 6. Be2 {[%clk 0:03:02]}  e5 {[%clk 0:03:00]} 7. Be3 {[%clk 0:03:01]}  Nc6 {[%clk 0:03:01]} 8. d5 {[%clk 0:03:01]}  Ne7 {[%clk 0:03:01]} 9. Nd2 {[%clk 0:03:01]}  Ne8 {[%clk 0:03:01]} 10. f3 {[%clk 0:02:54]}  f5 {[%clk 0:03:01]} 11. Qc2 {[%clk 0:02:52]}  f4 {[%clk 0:03:01]} 12. Bf2 {[%clk 0:02:52]}  g5 {[%clk 0:03:01]} 13. h4 {[%clk 0:02:44]}  g4 {[%clk 0:03:01]} 14. fxg4 {[%clk 0:02:42]}  Nf6 {[%clk 0:03:01]} 15. Qd1 {[%clk 0:02:35]}  h5 {[%clk 0:02:55]} 16. gxh5 {[%clk 0:02:27]}  Kf7 {[%clk 0:02:46]} 17. Nf3 {[%clk 0:02:24]}  Rh8 {[%clk 0:02:45]} 18. Ng5+ {[%clk 0:02:20]}  Kg8 {[%clk 0:02:44]} 19. c5 {[%clk 0:01:44]}  a6 {[%clk 0:02:37]} 20. Rc1 {[%clk 0:00:58]}  Qe8 {[%clk 0:02:33]} 21. cxd6 {[%clk 0:00:57]}  cxd6 {[%clk 0:02:32]} 22. Na4 {[%clk 0:00:58]}  Bg4 {[%clk 0:01:34]} 23. Bxg4 {[%clk 0:00:45]}  Nxg4 {[%clk 0:01:35]} 24. Qxg4 {[%clk 0:00:46]}  Rh6 {[%clk 0:01:27]} 25. Nb6 {[%clk 0:00:40]}  Rd8 {[%clk 0:01:27]} 26. Rc7 {[%clk 0:00:38]}  Kh8 {[%clk 0:01:16]} 27. Ne6 {[%clk 0:00:38]}  Bf6 {[%clk 0:01:10]} 28. Nxd8 {[%clk 0:00:30]}  Qxd8 {[%clk 0:01:10]} 29. Qd7 {[%clk 0:00:24]}  Qg8 {[%clk 0:01:05]} 30. Qxd6 {[%clk 0:00:20]}  Qxg2 {[%clk 0:01:01]} 31. Qd8+ {[%clk 0:00:17]}  Ng8 {[%clk 0:00:55]} 32. Qxg8+ {[%clk 0:00:11]}  Qxg8 {[%clk 0:00:53]} 33. Rc8 {[%clk 0:00:11]}  Bd8 {[%clk 0:00:53]} 34. Nd7 {[%clk 0:00:07]}  Qe8 {[%clk 0:00:43]} 35. Nxe5 {[%clk 0:00:06]}  Qxe5 {[%clk 0:00:39]} 36. Rxd8+ {[%clk 0:00:07]}  Kh7 {[%clk 0:00:39]} 37. Rd7+ {[%clk 0:00:07]}  Kh8 {[%clk 0:00:36]} 38. Rd8+ {[%clk 0:00:07]}  Kh7 {[%clk 0:00:36]} 39. Kf1 {[%clk 0:00:07]}  Qxe4 {[%clk 0:00:25]} 40. Rd7+ {[%clk 0:00:07]}  Kh8 {[%clk 0:00:25]} 41. Rg1 {[%clk 0:00:05]}  f3 {[%clk 0:00:12]} 42. Rd8+ {[%clk 0:00:03]}  Kh7 {[%clk 0:00:12]} 43. Rd7+ {[%clk 0:00:04]}  Kh8 {[%clk 0:00:12]} 44. Rg3 {[%clk 0:00:04]}  Qb1+ {[%clk 0:00:09]} 45. Be1 {[%clk 0:00:03]}  Qd3+ {[%clk 0:00:10]} 46. Kg1 {[%clk 0:00:03]}  Qe2 {[%clk 0:00:10]} 47. Bf2 {[%clk 0:00:02]}  Qd1+ {[%clk 0:00:09]} 48. Kh2 {[%clk 0:00:03]}  Rf6 {[%clk 0:00:05]} 49. Rd8+ {[%clk 0:00:02]}  Kh7 {[%clk 0:00:05]} 50. Rd7+ {[%clk 0:00:03]}  Kh8 {[%clk 0:00:04]} 51. Rd8+ {[%clk 0:00:03]}  Kh7 {[%clk 0:00:04]} 52. Be3 {[%clk 0:00:03]}  Qe2+ {[%clk 0:00:03]} 53. Kh3 {[%clk 0:00:02]}  Qxe3 {[%clk 0:00:04]} 54. Rd7+ {[%clk 0:00:03]}  Kh8 {[%clk 0:00:04]} 55. Rd8+ {[%clk 0:00:03]}  Kh7 {[%clk 0:00:05]} 56. Rd7+ {[%clk 0:00:04]}  Kh6 {[%clk 0:00:06]} 57. Rd8 {[%clk 0:00:04]}  Qe2 {[%clk 0:00:04]} 58. Rh8# {[%clk 0:00:04]} 1-0


[Site "https://www.chess.com"]

[Event "Titled Tuesday Blitz February 21 Early 2023"]
[White "Hrabinska, Myroslava"]
[Black "Dauner, Benedikt"]
[WhiteFideId "14109190"]
[BlackFideId "16225899"]
[WhiteElo "2210"]
[BlackElo "2400"]
[Result "1-0"]
[Round "02"]
[TimeControl "180+2"]
[Date "2023.02.21"]
[WhiteClock "0:00:35"]
[BlackClock "0:00:01"]

1. e4 {[%clk 0:03:00]}  d6 {[%clk 0:03:00]} 2. d4 {[%clk 0:03:00]}  e5 {[%clk 0:03:01]} 3. Nf3 {[%clk 0:02:53]}  Nd7 {[%clk 0:02:59]} 4. Bc4 {[%clk 0:02:51]}  c6 {[%clk 0:02:57]} 5. Nc3 {[%clk 0:02:49]}  h6 {[%clk 0:02:54]} 6. a4 {[%clk 0:02:47]}  Ngf6 {[%clk 0:02:54]} 7. h3 {[%clk 0:02:47]}  Be7 {[%clk 0:02:53]} 8. Be3 {[%clk 0:02:47]}  Qc7 {[%clk 0:02:53]} 9. O-O {[%clk 0:02:47]}  Nf8 {[%clk 0:02:52]} 10. Qe2 {[%clk 0:02:35]}  g5 {[%clk 0:02:52]} 11. dxe5 {[%clk 0:02:15]}  dxe5 {[%clk 0:02:51]} 12. Nh2 {[%clk 0:02:16]}  Ng6 {[%clk 0:02:50]} 13. Ng4 {[%clk 0:02:14]}  Bxg4 {[%clk 0:02:17]} 14. hxg4 {[%clk 0:02:15]}  Nf4 {[%clk 0:02:18]} 15. Qf3 {[%clk 0:02:12]}  Qd7 {[%clk 0:01:47]} 16. g3 {[%clk 0:02:02]}  Ng6 {[%clk 0:01:17]} 17. Qf5 {[%clk 0:02:00]}  Qxf5 {[%clk 0:00:38]} 18. gxf5 {[%clk 0:01:58]}  Nf8 {[%clk 0:00:39]} 19. Kg2 {[%clk 0:01:54]}  Ng4 {[%clk 0:00:35]} 20. Bc1 {[%clk 0:01:48]}  Bc5 {[%clk 0:00:35]} 21. a5 {[%clk 0:01:42]}  a6 {[%clk 0:00:33]} 22. Na4 {[%clk 0:01:41]}  Ba7 {[%clk 0:00:33]} 23. Nb6 {[%clk 0:01:40]}  Rd8 {[%clk 0:00:31]} 24. f3 {[%clk 0:01:39]}  Nf6 {[%clk 0:00:31]} 25. Be3 {[%clk 0:01:38]}  N6d7 {[%clk 0:00:24]} 26. Rfd1 {[%clk 0:01:17]}  Nxb6 {[%clk 0:00:18]} 27. axb6 {[%clk 0:01:17]}  Rxd1 {[%clk 0:00:13]} 28. Rxd1 {[%clk 0:01:16]}  Bb8 {[%clk 0:00:13]} 29. Rh1 {[%clk 0:01:12]}  f6 {[%clk 0:00:12]} 30. Rd1 {[%clk 0:01:07]}  Nd7 {[%clk 0:00:11]} 31. Be6 {[%clk 0:01:06]}  Rh7 {[%clk 0:00:12]} 32. b4 {[%clk 0:01:01]}  Re7 {[%clk 0:00:10]} 33. Bc5 {[%clk 0:00:59]}  Nxc5 {[%clk 0:00:10]} 34. bxc5 {[%clk 0:01:00]}  Rh7 {[%clk 0:00:06]} 35. Bc8 {[%clk 0:00:50]}  h5 {[%clk 0:00:04]} 36. Rh1 {[%clk 0:00:48]}  Kd8 {[%clk 0:00:03]} 37. Be6 {[%clk 0:00:41]}  Ke8 {[%clk 0:00:04]} 38. c3 {[%clk 0:00:38]}  Kd8 {[%clk 0:00:03]} 39. Kf2 {[%clk 0:00:38]}  Ke8 {[%clk 0:00:03]} 40. Ke2 {[%clk 0:00:38]}  Kd8 {[%clk 0:00:03]} 41. Kd3 {[%clk 0:00:38]}  h4 {[%clk 0:00:03]} 42. gxh4 {[%clk 0:00:37]}  Rxh4 {[%clk 0:00:04]} 43. Rxh4 {[%clk 0:00:33]}  gxh4 {[%clk 0:00:05]} 44. Ke2 {[%clk 0:00:33]}  Ke7 {[%clk 0:00:03]} 45. Kf2 {[%clk 0:00:34]}  a5 {[%clk 0:00:01]} 46. Kg2 {[%clk 0:00:34]}  a4 {[%clk 0:00:01]} 47. Kh3 {[%clk 0:00:35]} 1-0


[Site "https://www.chess.com"]

[Event "Titled Tuesday Blitz February 21 Early 2023"]
[White "Jenkins, Drake"]
[Black "Khamdamova, Afruza"]
[WhiteFideId "2022397"]
[BlackFideId "14210444"]
[WhiteElo "2130"]
[BlackElo "2162"]
[Result "0-1"]
[Round "02"]
[TimeControl "180+2"]
[Date "2023.02.21"]
[WhiteClock "0:00:03"]
[BlackClock "0:01:03"]

1. Nf3 {[%clk 0:03:00]}  Nf6 {[%clk 0:02:59]} 2. c4 {[%clk 0:03:00]}  e6 {[%clk 0:02:58]} 3. g3 {[%clk 0:02:59]}  d5 {[%clk 0:02:58]} 4. Bg2 {[%clk 0:02:59]}  dxc4 {[%clk 0:02:58]} 5. Qa4+ {[%clk 0:02:58]}  Nbd7 {[%clk 0:02:57]} 6. Qxc4 {[%clk 0:02:58]}  c5 {[%clk 0:02:57]} 7. O-O {[%clk 0:02:57]}  a6 {[%clk 0:02:57]} 8. a4 {[%clk 0:02:56]}  b5 {[%clk 0:02:53]} 9. Qc2 {[%clk 0:02:51]}  Bb7 {[%clk 0:02:53]} 10. d4 {[%clk 0:02:36]}  Be7 {[%clk 0:02:32]} 11. dxc5 {[%clk 0:02:32]}  Bxc5 {[%clk 0:02:31]} 12. axb5 {[%clk 0:02:19]}  axb5 {[%clk 0:02:30]} 13. Rxa8 {[%clk 0:02:19]}  Qxa8 {[%clk 0:02:25]} 14. Nc3 {[%clk 0:02:15]}  Bc6 {[%clk 0:02:25]} 15. Bf4 {[%clk 0:01:47]}  O-O {[%clk 0:02:24]} 16. Rc1 {[%clk 0:01:45]}  b4 {[%clk 0:02:23]} 17. Nd1 {[%clk 0:01:38]}  Be4 {[%clk 0:02:21]} 18. Qb3 {[%clk 0:01:07]}  Bd5 {[%clk 0:02:13]} 19. Qd3 {[%clk 0:01:06]}  Rc8 {[%clk 0:02:12]} 20. Ne1 {[%clk 0:00:41]}  Bxg2 {[%clk 0:01:54]} 21. Nxg2 {[%clk 0:00:42]}  Nd5 {[%clk 0:01:45]} 22. Bd2 {[%clk 0:00:36]}  N7f6 {[%clk 0:01:42]} 23. Nge3 {[%clk 0:00:29]}  Bb6 {[%clk 0:01:31]} 24. Rxc8+ {[%clk 0:00:27]}  Qxc8 {[%clk 0:01:31]} 25. Nxd5 {[%clk 0:00:27]}  Nxd5 {[%clk 0:01:29]} 26. e4 {[%clk 0:00:27]}  Nf6 {[%clk 0:01:27]} 27. Bxb4 {[%clk 0:00:27]}  h6 {[%clk 0:01:27]} 28. Bc3 {[%clk 0:00:27]}  Nd7 {[%clk 0:01:17]} 29. Kg2 {[%clk 0:00:21]}  Qc6 {[%clk 0:01:17]} 30. Ne3 {[%clk 0:00:09]}  Nc5 {[%clk 0:01:17]} 31. Qc4 {[%clk 0:00:07]}  Qxe4+ {[%clk 0:01:15]} 32. Qxe4 {[%clk 0:00:08]}  Nxe4 {[%clk 0:01:14]} 33. Nc4 {[%clk 0:00:08]}  Bxf2 {[%clk 0:01:11]} 34. Ba5 {[%clk 0:00:04]}  Ba7 {[%clk 0:01:04]} 35. g4 {[%clk 0:00:04]}  Nf6 {[%clk 0:01:03]} 36. h3 {[%clk 0:00:03]}  Nd5 {[%clk 0:01:03]} 37. Kf3 {[%clk 0:00:03]}  Kf8 {[%clk 0:01:03]} 0-1


[Site "https://www.chess.com"]

[Event "Titled Tuesday Blitz February 21 Early 2023"]
[White "Malka, Samuel"]
[Black "Bogaudinov, Rushan"]
[WhiteFideId "20643675"]
[BlackFideId "4129288"]
[WhiteElo "2165"]
[BlackElo "1939"]
[Result "0-1"]
[Round "02"]
[TimeControl "180+2"]
[Date "2023.02.21"]
[WhiteClock "0:00:09"]
[BlackClock "0:00:22"]

1. d4 {[%clk 0:03:00]}  Nf6 {[%clk 0:02:59]} 2. c4 {[%clk 0:03:01]}  e6 {[%clk 0:03:00]} 3. Nf3 {[%clk 0:03:01]}  Bb4+ {[%clk 0:02:56]} 4. Nbd2 {[%clk 0:03:00]}  d5 {[%clk 0:02:54]} 5. Qc2 {[%clk 0:02:37]}  O-O {[%clk 0:02:51]} 6. g3 {[%clk 0:02:08]}  c6 {[%clk 0:02:51]} 7. Bg2 {[%clk 0:02:08]}  Re8 {[%clk 0:02:48]} 8. O-O {[%clk 0:02:08]}  Nbd7 {[%clk 0:02:43]} 9. e4 {[%clk 0:02:01]}  Nxe4 {[%clk 0:02:34]} 10. Nxe4 {[%clk 0:02:00]}  dxe4 {[%clk 0:02:35]} 11. Qxe4 {[%clk 0:02:00]}  Nf6 {[%clk 0:02:35]} 12. Qc2 {[%clk 0:01:57]}  Bf8 {[%clk 0:02:21]} 13. Rd1 {[%clk 0:01:52]}  a5 {[%clk 0:02:03]} 14. Ne5 {[%clk 0:01:48]}  a4 {[%clk 0:01:55]} 15. c5 {[%clk 0:01:42]}  Nd5 {[%clk 0:01:47]} 16. Nc4 {[%clk 0:01:40]}  f6 {[%clk 0:01:17]} 17. Be3 {[%clk 0:01:29]}  e5 {[%clk 0:01:14]} 18. dxe5 {[%clk 0:01:27]}  fxe5 {[%clk 0:01:15]} 19. Bxd5+ {[%clk 0:01:15]}  cxd5 {[%clk 0:01:14]} 20. Nb6 {[%clk 0:01:16]}  Be6 {[%clk 0:01:13]} 21. Nxa8 {[%clk 0:01:14]}  Qxa8 {[%clk 0:01:14]} 22. b4 {[%clk 0:01:03]}  d4 {[%clk 0:00:58]} 23. Bd2 {[%clk 0:00:58]}  Bd5 {[%clk 0:00:56]} 24. Rac1 {[%clk 0:00:52]}  Rc8 {[%clk 0:00:53]} 25. Re1 {[%clk 0:00:49]}  b6 {[%clk 0:00:49]} 26. Rxe5 {[%clk 0:00:27]}  Bh1 {[%clk 0:00:47]} 27. f3 {[%clk 0:00:03]}  Qxf3 {[%clk 0:00:46]} 28. Bf4 {[%clk 0:00:03]}  bxc5 {[%clk 0:00:41]} 29. bxc5 {[%clk 0:00:04]}  d3 {[%clk 0:00:31]} 30. Qf2 {[%clk 0:00:05]}  Qc6 {[%clk 0:00:16]} 31. h4 {[%clk 0:00:05]}  h5 {[%clk 0:00:15]} 32. Kh2 {[%clk 0:00:05]}  Be4 {[%clk 0:00:14]} 33. Re1 {[%clk 0:00:04]}  Bg6 {[%clk 0:00:14]} 34. Rg5 {[%clk 0:00:03]}  Bf7 {[%clk 0:00:13]} 35. Be3 {[%clk 0:00:03]}  Be7 {[%clk 0:00:12]} 36. Rf5 {[%clk 0:00:02]}  Bf6 {[%clk 0:00:13]} 37. Bd4 {[%clk 0:00:03]}  Bxd4 {[%clk 0:00:11]} 38. Qxd4 {[%clk 0:00:04]}  Bg6 {[%clk 0:00:11]} 39. Rf4 {[%clk 0:00:04]}  Qxc5 {[%clk 0:00:09]} 40. Qxc5 {[%clk 0:00:04]}  Rxc5 {[%clk 0:00:10]} 41. Rf2 {[%clk 0:00:04]}  Rd5 {[%clk 0:00:10]} 42. Rd2 {[%clk 0:00:04]}  Rc5 {[%clk 0:00:10]} 43. Red1 {[%clk 0:00:03]}  Rc2 {[%clk 0:00:10]} 44. Rxc2 {[%clk 0:00:03]}  dxc2 {[%clk 0:00:10]} 45. Rc1 {[%clk 0:00:04]}  Kf7 {[%clk 0:00:10]} 46. Kg2 {[%clk 0:00:04]}  Ke6 {[%clk 0:00:11]} 47. Kf3 {[%clk 0:00:05]}  Kd5 {[%clk 0:00:12]} 48. Ke3 {[%clk 0:00:06]}  Kc4 {[%clk 0:00:12]} 49. Kd2 {[%clk 0:00:06]}  Kb4 {[%clk 0:00:13]} 50. Rxc2 {[%clk 0:00:06]}  Bxc2 {[%clk 0:00:13]} 51. Kxc2 {[%clk 0:00:07]}  Kc4 {[%clk 0:00:13]} 52. Kb2 {[%clk 0:00:06]}  Kb4 {[%clk 0:00:13]} 53. a3+ {[%clk 0:00:05]}  Kc4 {[%clk 0:00:13]} 54. Kc2 {[%clk 0:00:06]}  Kd4 {[%clk 0:00:13]} 55. Kd2 {[%clk 0:00:06]}  Kc4 {[%clk 0:00:13]} 56. Kc2 {[%clk 0:00:06]}  g6 {[%clk 0:00:14]} 57. Kb2 {[%clk 0:00:04]}  Kd3 {[%clk 0:00:14]} 58. Ka2 {[%clk 0:00:04]}  Kc3 {[%clk 0:00:15]} 59. Ka1 {[%clk 0:00:02]}  Kb3 {[%clk 0:00:15]} 60. Kb1 {[%clk 0:00:02]}  Kxa3 {[%clk 0:00:16]} 61. Ka1 {[%clk 0:00:03]}  Kb3 {[%clk 0:00:16]} 62. Kb1 {[%clk 0:00:03]}  Kc3 {[%clk 0:00:16]} 63. Ka2 {[%clk 0:00:04]}  Kd3 {[%clk 0:00:17]} 64. Ka3 {[%clk 0:00:05]}  Ke3 {[%clk 0:00:18]} 65. Kxa4 {[%clk 0:00:06]}  Kf3 {[%clk 0:00:19]} 66. Kb3 {[%clk 0:00:07]}  Kxg3 {[%clk 0:00:20]} 67. Kc2 {[%clk 0:00:08]}  Kxh4 {[%clk 0:00:21]} 68. Kd1 {[%clk 0:00:09]}  Kg3 {[%clk 0:00:21]} 69. Ke1 {[%clk 0:00:09]}  Kg2 {[%clk 0:00:22]} 0-1


[Site "https://www.chess.com"]

[Event "Titled Tuesday Blitz February 21 Early 2023"]
[White "Shuvalov, Evgenij"]
[Black "Afanasieva, Alexandra"]
[WhiteFideId "4187237"]
[BlackFideId "34126926"]
[WhiteElo "2038"]
[BlackElo "1857"]
[Result "0-1"]
[Round "02"]
[TimeControl "180+2"]
[Date "2023.02.21"]
[WhiteClock "0:00:05"]
[BlackClock "0:00:08"]

1. d4 {[%clk 0:01:53]}  Nf6 {[%clk 0:02:59]} 2. c4 {[%clk 0:01:53]}  e6 {[%clk 0:02:59]} 3. Nc3 {[%clk 0:01:52]}  Bb4 {[%clk 0:02:59]} 4. f3 {[%clk 0:01:51]}  d5 {[%clk 0:02:58]} 5. a3 {[%clk 0:01:50]}  Bxc3+ {[%clk 0:02:58]} 6. bxc3 {[%clk 0:01:51]}  O-O {[%clk 0:02:57]} 7. cxd5 {[%clk 0:01:51]}  exd5 {[%clk 0:02:57]} 8. e3 {[%clk 0:01:50]}  Bf5 {[%clk 0:02:47]} 9. g4 {[%clk 0:01:46]}  Nxg4 {[%clk 0:02:29]} 10. fxg4 {[%clk 0:01:43]}  Qh4+ {[%clk 0:02:29]} 11. Kd2 {[%clk 0:01:43]}  Be4 {[%clk 0:02:22]} 12. Nf3 {[%clk 0:01:20]}  Qf2+ {[%clk 0:02:21]} 13. Be2 {[%clk 0:01:17]}  Bxf3 {[%clk 0:02:18]} 14. Rf1 {[%clk 0:01:17]}  Qxe2+ {[%clk 0:02:19]} 15. Qxe2 {[%clk 0:01:17]}  Bxe2 {[%clk 0:02:19]} 16. Kxe2 {[%clk 0:01:18]}  Nd7 {[%clk 0:02:12]} 17. Rb1 {[%clk 0:01:16]}  Nb6 {[%clk 0:02:07]} 18. Kd3 {[%clk 0:01:14]}  Rfe8 {[%clk 0:02:05]} 19. a4 {[%clk 0:01:08]}  a5 {[%clk 0:02:05]} 20. Ba3 {[%clk 0:01:08]}  Nc4 {[%clk 0:02:02]} 21. Bc1 {[%clk 0:01:07]}  b6 {[%clk 0:01:59]} 22. Rf4 {[%clk 0:01:00]}  Nd6 {[%clk 0:01:34]} 23. Ba3 {[%clk 0:00:58]}  Nc4 {[%clk 0:01:33]} 24. Bc1 {[%clk 0:00:57]}  Nd6 {[%clk 0:00:57]} 25. Ba3 {[%clk 0:00:57]}  Ne4 {[%clk 0:00:58]} 26. Rb2 {[%clk 0:00:35]}  Nxc3 {[%clk 0:00:51]} 27. Kxc3 {[%clk 0:00:33]}  Rxe3+ {[%clk 0:00:51]} 28. Kd2 {[%clk 0:00:33]}  Rxa3 {[%clk 0:00:51]} 29. Rc2 {[%clk 0:00:32]}  Ra7 {[%clk 0:00:37]} 30. Rf5 {[%clk 0:00:29]}  Rxa4 {[%clk 0:00:23]} 31. Rxd5 {[%clk 0:00:29]}  f6 {[%clk 0:00:20]} 32. Rd7 {[%clk 0:00:28]}  Rb4 {[%clk 0:00:17]} 33. d5 {[%clk 0:00:24]}  h6 {[%clk 0:00:16]} 34. Kd3 {[%clk 0:00:23]}  a4 {[%clk 0:00:15]} 35. d6 {[%clk 0:00:23]}  Rb3+ {[%clk 0:00:16]} 36. Ke4 {[%clk 0:00:21]}  Rb4+ {[%clk 0:00:09]} 37. Kf5 {[%clk 0:00:21]}  Ra5+ {[%clk 0:00:08]} 38. Ke6 {[%clk 0:00:05]}  Re5# {[%clk 0:00:08]} 0-1


[Site "https://www.chess.com"]

[Event "Titled Tuesday Blitz February 21 Early 2023"]
[White "Rosh Jain"]
[Black "Womacka, Mathias"]
[WhiteFideId "25789465"]
[BlackFideId "4611390"]
[WhiteElo "2248"]
[BlackElo "2396"]
[Result "0-1"]
[Round "02"]
[TimeControl "180+2"]
[Date "2023.02.21"]
[WhiteClock "0:00:34"]
[BlackClock "0:01:26"]

1. e4 {[%clk 0:03:00]}  c5 {[%clk 0:02:59]} 2. Nf3 {[%clk 0:03:00]}  d6 {[%clk 0:03:00]} 3. d4 {[%clk 0:03:00]}  cxd4 {[%clk 0:03:00]} 4. Nxd4 {[%clk 0:03:01]}  Nf6 {[%clk 0:03:01]} 5. Nc3 {[%clk 0:03:02]}  a6 {[%clk 0:03:01]} 6. Bc4 {[%clk 0:03:01]}  e6 {[%clk 0:03:01]} 7. Bb3 {[%clk 0:03:01]}  b5 {[%clk 0:03:01]} 8. O-O {[%clk 0:02:59]}  Be7 {[%clk 0:03:02]} 9. Bg5 {[%clk 0:02:58]}  O-O {[%clk 0:03:00]} 10. Re1 {[%clk 0:02:58]}  Bd7 {[%clk 0:02:55]} 11. Kh1 {[%clk 0:02:49]}  Nc6 {[%clk 0:02:54]} 12. h3 {[%clk 0:02:35]}  Nxe4 {[%clk 0:02:28]} 13. Nxe4 {[%clk 0:02:04]}  Bxg5 {[%clk 0:02:26]} 14. Nxd6 {[%clk 0:01:47]}  Bf6 {[%clk 0:02:22]} 15. Nxc6 {[%clk 0:01:44]}  Bxc6 {[%clk 0:02:23]} 16. c3 {[%clk 0:01:40]}  Qb6 {[%clk 0:02:12]} 17. Qe2 {[%clk 0:01:29]}  Rad8 {[%clk 0:02:04]} 18. Nxf7 {[%clk 0:00:57]}  Rxf7 {[%clk 0:01:51]} 19. Qxe6 {[%clk 0:00:42]}  Rf8 {[%clk 0:01:39]} 20. Qd6 {[%clk 0:00:36]}  Bxg2+ {[%clk 0:01:35]} 21. Kxg2 {[%clk 0:00:35]}  Qxd6 {[%clk 0:01:36]} 22. Rad1 {[%clk 0:00:35]}  Qc6+ {[%clk 0:01:27]} 23. Bd5 {[%clk 0:00:34]}  Qc7 {[%clk 0:01:26]} 0-1


[Site "https://www.chess.com"]

[Event "Titled Tuesday Blitz February 21 Early 2023"]
[White "SicilianPanzer"]
[Black "Ronka, Erik"]
[BlackFideId "505080"]
[WhiteElo "2254"]
[BlackElo "2276"]
[Result "1/2-1/2"]
[Round "02"]
[TimeControl "180+2"]
[Date "2023.02.21"]
[WhiteClock "0:00:04"]
[BlackClock "0:00:07"]

1. e4 {[%clk 0:03:00]}  c5 {[%clk 0:03:00]} 2. Nc3 {[%clk 0:03:00]}  g6 {[%clk 0:02:56]} 3. d4 {[%clk 0:02:58]}  cxd4 {[%clk 0:02:54]} 4. Qxd4 {[%clk 0:02:58]}  Nf6 {[%clk 0:02:53]} 5. Nf3 {[%clk 0:02:56]}  Nc6 {[%clk 0:02:53]} 6. Qa4 {[%clk 0:02:56]}  d6 {[%clk 0:02:53]} 7. e5 {[%clk 0:02:54]}  dxe5 {[%clk 0:02:54]} 8. Nxe5 {[%clk 0:02:54]}  Bg7 {[%clk 0:02:50]} 9. Nxc6 {[%clk 0:02:21]}  bxc6 {[%clk 0:02:50]} 10. Qxc6+ {[%clk 0:02:20]}  Bd7 {[%clk 0:02:49]} 11. Qf3 {[%clk 0:02:19]}  O-O {[%clk 0:02:32]} 12. Bc4 {[%clk 0:02:00]}  Rc8 {[%clk 0:02:26]} 13. Bb3 {[%clk 0:01:56]}  Bc6 {[%clk 0:02:24]} 14. Qg3 {[%clk 0:01:52]}  Nh5 {[%clk 0:02:23]} 15. Qh3 {[%clk 0:01:49]}  Qc7 {[%clk 0:01:58]} 16. O-O {[%clk 0:01:42]}  Nf4 {[%clk 0:01:57]} 17. Bxf4 {[%clk 0:01:09]}  Qxf4 {[%clk 0:01:58]} 18. Rfe1 {[%clk 0:01:03]}  e6 {[%clk 0:01:51]} 19. Rad1 {[%clk 0:01:01]}  a5 {[%clk 0:01:41]} 20. a4 {[%clk 0:00:46]}  h5 {[%clk 0:01:17]} 21. Qe3 {[%clk 0:00:26]}  Qg4 {[%clk 0:01:06]} 22. f3 {[%clk 0:00:25]}  Qb4 {[%clk 0:00:58]} 23. g3 {[%clk 0:00:12]}  Kh7 {[%clk 0:00:53]} 24. Kg2 {[%clk 0:00:12]}  Bh6 {[%clk 0:00:53]} 25. Qd4 {[%clk 0:00:10]}  Qb7 {[%clk 0:00:52]} 26. Rd3 {[%clk 0:00:07]}  h4 {[%clk 0:00:51]} 27. Qxh4 {[%clk 0:00:06]}  Rh8 {[%clk 0:00:38]} 28. Ne4 {[%clk 0:00:06]}  Kg8 {[%clk 0:00:27]} 29. Qf6 {[%clk 0:00:05]}  Bg7 {[%clk 0:00:25]} 30. Qg5 {[%clk 0:00:04]}  Bxe4 {[%clk 0:00:22]} 31. Rxe4 {[%clk 0:00:03]}  Rh5 {[%clk 0:00:22]} 32. Qe3 {[%clk 0:00:02]}  Kh7 {[%clk 0:00:18]} 33. Qd2 {[%clk 0:00:02]}  Bxb2 {[%clk 0:00:18]} 34. Qd1 {[%clk 0:00:02]}  Bg7 {[%clk 0:00:18]} 35. Rd7 {[%clk 0:00:02]}  Rc7 {[%clk 0:00:17]} 36. Rxc7 {[%clk 0:00:02]}  Qxc7 {[%clk 0:00:18]} 37. Qd3 {[%clk 0:00:02]}  Rc5 {[%clk 0:00:17]} 38. Rc4 {[%clk 0:00:02]}  Rxc4 {[%clk 0:00:15]} 39. Qxc4 {[%clk 0:00:02]}  Qd6 {[%clk 0:00:16]} 40. Qe4 {[%clk 0:00:01]}  Qd2+ {[%clk 0:00:15]} 41. Kh3 {[%clk 0:00:02]}  Bd4 {[%clk 0:00:16]} 42. Qh4+ {[%clk 0:00:02]}  Kg7 {[%clk 0:00:15]} 43. Qe4 {[%clk 0:00:01]}  Bg1 {[%clk 0:00:15]} 44. Qe5+ {[%clk 0:00:02]}  Kh7 {[%clk 0:00:14]} 45. Qf6 {[%clk 0:00:01]}  Qxh2+ {[%clk 0:00:14]} 46. Kg4 {[%clk 0:00:01]}  Kg8 {[%clk 0:00:12]} 47. Qd8+ {[%clk 0:00:01]}  Kg7 {[%clk 0:00:11]} 48. Bxe6 {[%clk 0:00:01]}  Qh5+ {[%clk 0:00:12]} 49. Kf4 {[%clk 0:00:01]}  fxe6 {[%clk 0:00:08]} 50. Qe7+ {[%clk 0:00:02]}  Kh6 {[%clk 0:00:09]} 51. Qf8+ {[%clk 0:00:02]}  Kh7 {[%clk 0:00:09]} 52. Qf7+ {[%clk 0:00:02]}  Kh8 {[%clk 0:00:08]} 53. Qf8+ {[%clk 0:00:03]}  Kh7 {[%clk 0:00:07]} 54. Qf7+ {[%clk 0:00:04]}  Kh6 {[%clk 0:00:08]} 55. Qf8+ {[%clk 0:00:04]}  Kh7 {[%clk 0:00:07]} 1/2-1/2


[Site "https://www.chess.com"]